bitfinex-derivatives/quotes_BNBF0:USTF0_20250112
["timestamp","ask_amount","ask_price","bid_price","bid_amount"]
[1736673907058,0.28862527,692.94,691.6,2.70039154]
[1736673907259,0.28862527,692.94,691.55,0.87893891]
[1736673907456,0.28862527,692.94,691.54,1.3000632]
[1736673908555,0.28862527,692.94,691.54,4.00045474]
[1736673908755,0.28862527,692.94,691.55,0.87893891]
[1736673909857,0.28862527,692.94,691.55,3.88602818]
[1736673910057,0.28862527,692.94,691.56,2.70039154]
[1736673910560,0.28862527,692.94,691.56,4.00045474]
[1736673910754,0.28862527,692.94,691.57,0.87893891]
[1736673911459,0.28862527,692.94,691.57,3.88602818]
[1736673911655,0.28862527,692.94,691.58,2.70039154]
[1736673912960,0.28862527,692.94,691.54,2.70039154]
[1736673913259,0.28862527,692.94,691.54,1.82145263]
[1736673914258,0.28862527,692.94,691.54,4.8285419]
[1736673914458,0.28862527,692.94,691.54,3.00708927]
[1736673915863,0.28862527,692.94,691.53,1.3000632]
[1736673916162,0.28862527,692.94,691.54,1.3000632]
[1736673919367,0.28862527,692.94,691.53,1.3000632]
[1736673920567,0.28862527,692.94,691.54,1.3000632]
[1736673921673,0.28862527,692.94,691.51,1.3000632]
[1736673922371,0.28862527,692.94,691.51,4.30715247]
[1736673922572,0.28862527,692.94,691.52,3.12321377]
[1736673922968,0.28862527,692.94,691.53,0.87990427]
[1736673923472,1.08027967,692.9,691.64,1.3000632]
[1736673923672,0.2886461,692.89,691.64,1.3000632]
[1736673925867,0.2886461,692.89,691.59,0.87979516]
[1736673926271,0.2886461,692.89,691.59,3.00708927]
[1736673927870,0.2886461,692.89,691.27,1.3000632]
[1736673928673,0.2886461,692.89,691.25,1.3000632]
[1736673929770,0.2886461,692.89,691.21,1.3000632]
[1736673930869,0.2886461,692.89,691.2,1.3000632]
[1736673932676,0.2886461,692.89,691.2,2.18020207]
[1736673933476,0.2886461,692.89,691.21,1.3000632]
[1736673933877,0.2886461,692.89,691.21,4.00399767]
[1736673934078,0.2886461,692.89,691.22,0.88013887]
[1736673935174,0.2886461,692.89,691.22,3.88722814]
[1736673935372,0.2886461,692.89,691.23,1.8237956]
[1736673935579,0.2886461,692.89,691.23,2.70446755]
[1736673936683,0.2886461,692.89,691.28,1.3000632]
[1736673937480,0.2886461,692.89,691.52,1.3000632]
[1736673940181,0.2886461,692.89,691.56,1.3000632]
[1736673941478,0.2886461,692.89,691.58,1.3000632]
[1736673942584,0.2886461,692.89,691.72,1.3000632]
[1736673943386,0.2886461,692.89,691.73,1.3000632]
[1736673944184,0.2886461,692.89,691.65,1.8237956]
[1736673944383,0.2886461,692.89,691.65,2.70510109]
[1736673944985,0.2886461,692.89,691.6,2.70510109]
[1736673946285,0.2886461,692.89,691.65,1.3000632]
[1736673947189,0.2886461,692.89,691.66,1.3000632]
[1736673947882,0.2886461,692.89,691.65,1.3000632]
[1736673948990,0.2886461,692.89,691.66,1.3000632]
[1736673949990,0.2886461,692.89,691.65,0.88130549]
[1736673950289,0.2886461,692.89,691.64,5.71219036]
[1736673950489,0.2886461,692.89,691.65,2.70510109]
[1736673950791,1.08027967,692.88,691.65,2.70510109]
[1736673951085,0.28865443,692.87,691.65,2.70510109]
[1736673951293,0.28865443,692.87,691.66,1.3000632]
[1736673951486,0.28865443,692.87,691.66,2.18136869]
[1736673952291,0.28865443,692.87,691.67,1.3000632]
[1736673952686,0.28865443,692.87,691.67,3.1238588]
[1736673953388,0.28865443,692.87,691.68,1.3000632]
[1736673953894,0.28865443,692.87,691.68,4.30715247]
[1736673954086,0.28865443,692.87,691.69,1.8237956]
[1736673955095,0.28865443,692.87,691.69,4.83088487]
[1736673955293,0.28865443,692.87,691.7,1.8237956]
[1736673957896,0.28865443,692.87,691.69,3.00708927]
[1736673959095,0.28865443,692.87,691.59,1.3000632]
[1736673959693,0.28865443,692.87,691.52,0.88143431]
[1736673959893,0.28865443,692.87,691.51,2.7081743]
[1736673961002,1.08027967,692.85,691.51,2.7081743]
[1736673961500,0.28866693,692.84,691.51,1.82673999]
[1736673962801,0.28866693,692.84,691.46,2.9974132]
[1736673963301,0.28866693,692.84,691.46,2.11598304]
[1736673963500,0.28866693,692.84,691.46,0.28924305]
[1736673969499,0.28866693,692.84,691.46,1.58930625]
[1736673971204,0.28866693,692.84,691.46,0.28924305]
[1736673971904,0.28866693,692.84,691.46,1.58930625]
[1736673973011,0.28866693,692.84,691.48,1.3000632]
[1736673974109,0.28866693,692.84,691.46,0.28924305]
[1736673976203,0.28866693,692.84,691.46,1.1706661]
[1736673976609,0.28866693,692.84,691.46,4.17775537]
[1736673976810,0.28866693,692.84,691.47,2.70801924]
[1736673977010,0.28866693,692.84,691.47,4.00808244]
[1736673977207,0.28866693,692.84,691.48,0.88142305]
[1736673978309,0.28866693,692.84,691.48,3.88851232]
[1736673978508,0.28866693,692.84,691.49,2.70801924]
[1736673979413,0.28866693,692.84,691.49,5.71510851]
[1736673979712,0.28866693,692.84,691.5,2.70801924]
[1736673981012,0.28866693,692.84,691.51,1.3000632]
[1736673981211,0.28866693,692.84,691.51,2.18148625]
[1736673981812,0.28866693,692.84,691.51,5.18857552]
[1736673982012,0.28866693,692.84,691.52,2.70801924]
[1736673983105,0.28866693,692.84,691.52,5.71510851]
[1736673983306,0.28866693,692.84,691.53,2.70801924]
[1736673983609,1.08027967,692.83,691.56,1.3000632]
[1736673983813,0.28867526,692.82,691.56,1.3000632]
[1736673984615,1.36895493,692.82,691.57,1.3000632]
[1736673985215,1.08027967,692.81,691.58,1.3000632]
[1736673985415,0.2886836,692.8,691.58,1.3000632]
[1736673986215,0.2886836,692.8,691.59,1.3000632]
[1736673987016,0.2886836,692.8,691.61,1.3000632]
[1736673989217,0.2886836,692.8,691.61,4.00808244]
[1736673989419,0.2886836,692.8,691.62,0.88142305]
[1736673989818,0.2886836,692.8,691.61,3.12665939]
[1736673990418,0.2886836,692.8,691.67,1.3000632]
[1736673992121,0.2886836,692.8,691.68,1.3000632]
[1736673994423,0.2886836,692.8,691.62,1.3000632]
[1736673996315,1.08027967,692.78,691.53,4.30715247]
[1736673996620,0.2886961,692.77,691.54,1.82570926]
[1736673997022,0.2886961,692.77,691.54,2.70668879]
[1736673997617,0.2886961,692.77,691.54,5.71377806]
[1736673997823,0.2886961,692.77,691.55,2.70668879]
[1736673998719,0.2886961,692.77,691.55,1.82570926]
[1736673998919,1.36897577,692.77,691.55,1.82570926]
[1736674000125,0.2886961,692.77,691.55,1.82570926]
[1736674000825,0.2886961,692.77,691.54,3.00708927]
[1736674001025,0.2886961,692.77,691.41,1.3000632]
[1736674001421,0.2886961,692.77,691.38,1.3000632]
[1736674002426,1.36897577,692.77,691.37,1.3000632]
[1736674003325,1.08027967,692.76,691.44,1.3000632]
[1736674003626,0.28870443,692.75,691.44,1.3000632]
[1736674004421,0.28870443,692.75,691.45,1.3000632]
[1736674005325,0.28870443,692.75,691.18,1.3000632]
[1736674005620,0.28870443,692.75,691.18,4.3125162]
[1736674005826,0.28870443,692.75,691.19,1.82679349]
[1736674007123,0.28870443,692.75,691.16,1.82679349]
[1736674008322,0.28870443,692.75,691.15,1.82679349]
[1736674008528,0.28870443,692.75,691.15,2.70843589]
[1736674009332,0.28870443,692.75,691.18,1.3000632]
[1736674009930,0.28870443,692.75,691.18,2.1817056]
[1736674010231,0.28870443,692.75,691.21,1.3000632]
[1736674011227,0.28870443,692.75,691.22,1.3000632]
[1736674012129,0.28870443,692.75,691.29,1.3000632]
[1736674014131,0.28870443,692.75,691.3,1.3000632]
[1736674014334,0.28870443,692.75,691.24,0.88172547]
[1736674014534,0.28870443,692.75,691.23,1.82679349]
[1736674015331,0.28870443,692.75,689.42,3.012453]
[1736674015528,0.28870443,692.75,683.66,0.53079975]
[1736674015728,0.28870443,692.75,689.42,1.8273144]
[1736674015933,0.28870443,692.75,691.28,1.29789265]
[1736674016734,0.28870443,692.75,691.27,1.29789265]
[1736674017538,0.28870443,692.75,691.28,1.29789265]
[1736674019535,0.28870443,692.75,691.23,3.89481367]
[1736674019737,0.28870443,692.75,691.24,2.70913701]
[1736674020842,0.28870443,692.75,691.25,3.01299106]
[1736674021042,0.28870443,692.75,691.26,1.8273144]
[1736674021249,0.28870443,692.75,691.26,2.7088955]
[1736674022644,0.28870443,692.75,691.27,3.01299106]
[1736674022944,0.28870443,692.75,691.28,1.8273144]
[1736674023545,0.28870443,692.75,691.28,2.70870254]
[1736674024044,0.28870443,692.75,691.29,3.01299106]
[1736674024243,0.28870443,692.75,691.3,1.8273144]
[1736674024443,0.28870443,692.75,691.3,2.70868397]
[1736674025242,0.28870443,692.75,691.31,3.01299106]
[1736674025443,1.0796428,692.74,691.32,2.70868397]
[1736674026547,0.28870443,692.75,691.36,1.29789265]
[1736674027849,0.28870443,692.75,691.33,3.01299106]
[1736674028049,0.28870443,692.75,691.29,1.29789265]
[1736674028851,0.28870443,692.75,691.22,1.29789265]
[1736674029149,0.27521813,692.75,691.22,1.29789265]
[1736674029352,0.27521813,692.75,691.22,4.00497122]
[1736674029648,0.27521813,692.75,691.22,3.1238366]
[1736674029849,1.35486093,692.75,691.26,1.29789265]
[1736674030550,0.27521813,692.75,691.23,3.01299106]
[1736674030750,0.27521813,692.75,691.24,1.82594395]
[1736674031848,0.27521813,692.75,691.2,1.82594395]
[1736674032848,0.27521813,692.75,691.19,3.01299106]
[1736674033051,0.27521813,692.75,691.18,3.01299106]
[1736674033251,0.27521813,692.75,691.18,4.31088371]
[1736674034151,0.27521813,692.75,691.07,3.01299106]
[1736674034351,0.27521813,692.75,691.08,1.82470657]
[1736674035950,0.27521813,692.75,691.02,1.82470657]
[1736674036951,0.27521813,692.75,691.02,2.70519062]
[1736674037351,0.27521813,692.75,691.03,3.01299106]
[1736674037650,0.27521813,692.75,691.04,3.12259922]
[1736674038554,0.27521813,692.75,691.04,1.82470657]
[1736674039448,0.27521813,692.75,691.0,1.82470657]
[1736674039753,0.27521813,692.75,691.0,2.70513738]
[1736674040555,0.27521813,692.75,691.01,1.29789265]
[1736674040748,0.27521813,692.75,691.01,4.31088371]
[1736674040953,0.27521813,692.75,691.02,1.82470657]
[1736674041258,0.27521813,692.75,691.1,1.29789265]
[1736674042158,0.27521813,692.75,691.12,1.29789265]
[1736674044153,0.27521813,692.75,691.19,1.29789265]
[1736674045161,0.27521813,692.75,691.22,1.29789265]
[1736674047257,0.27521813,692.75,691.25,1.29789265]
[1736674048162,0.27521813,692.75,691.14,3.01299106]
[1736674049865,0.27521813,692.75,691.0,1.29789265]
[1736674050764,0.27521813,692.75,690.99,1.29789265]
[1736674052563,0.27521813,692.75,691.01,1.29789265]
[1736674053363,0.27521813,692.75,690.99,1.29789265]
[1736674054064,0.27521813,692.75,690.96,1.29789265]
[1736674056170,0.27521813,692.75,690.94,3.01299106]
[1736674056369,0.27521813,692.75,690.95,1.82457083]
[1736674056864,0.27521813,692.75,690.94,3.01299106]
[1736674057062,0.27521813,692.75,690.95,1.82557383]
[1736674057267,0.27521813,692.75,690.95,4.00439047]
[1736674057468,0.27521813,692.75,690.96,2.70649782]
[1736674057670,0.27521813,692.75,690.97,1.82557383]
[1736674058169,0.27521813,692.75,690.96,0.88092399]
[1736674058170,0.27521813,692.75,691.46,0.28286514]
[1736674067680,0.27521813,692.75,691.46,1.58075779]
[1736674069678,0.27521813,692.75,691.47,1.29789265]
[1736674070781,0.27521813,692.75,691.48,1.29789265]
[1736674071887,0.27521813,692.75,691.46,1.58075779]
[1736674072588,0.27521813,692.75,691.46,0.28286514]
[1736674073789,0.27521813,692.75,691.46,4.28725561]
[1736674073988,0.27521813,692.75,691.47,0.88092399]
[1736674074787,0.27521813,692.75,691.47,3.89391505]
[1736674074989,0.27521813,692.75,691.48,2.70649782]
[1736674079093,0.27521813,692.75,691.54,1.29789265]
[1736674080194,0.27521813,692.75,691.55,1.29789265]
[1736674082297,0.27521813,692.75,691.57,1.29789265]
[1736674083697,0.27521813,692.75,691.6,1.29789265]
[1736674085901,0.27521813,692.75,691.61,1.29789265]
[1736674087003,1.0796428,692.73,691.58,1.82557383]
[1736674087201,1.36835557,692.73,691.58,1.82557383]
[1736674087701,1.36835557,692.73,691.58,2.70629138]
[1736674088202,1.36835557,692.73,691.54,2.70629138]
[1736674088399,1.36835557,692.73,691.54,1.82557383]
[1736674088998,1.36835557,692.73,691.54,2.70636198]
[1736674089302,1.0796428,692.72,691.54,1.82557383]
[1736674090298,1.0796428,692.72,691.54,2.70649308]
[1736674090503,1.0796428,692.71,691.5,3.01299106]
[1736674090703,1.0796428,692.71,691.51,1.82554254]
[1736674091204,0.28871277,692.73,691.51,1.82554254]
[1736674092000,0.28871277,692.73,691.46,0.28286514]
[1736674096302,0.28871277,692.73,691.46,2.10840768]
[1736674098209,0.28871277,692.73,691.46,0.28286514]
[1736674106309,0.28871277,692.73,691.55,1.29953991]
[1736674108415,0.28871277,692.73,691.54,1.29953991]
[1736674110323,0.28871277,692.73,691.46,0.28286514]
[1736674128530,1.36937434,692.73,691.46,0.28286514]
[1736674130028,1.08066157,692.72,691.46,0.28286514]
[1736674131135,1.36937434,692.73,691.46,0.28286514]
[1736674132032,0.28871277,692.73,691.57,1.29953991]
[1736674133235,0.28871277,692.73,691.6,1.29953991]
[1736674134326,0.28871277,692.73,691.59,1.29953991]
[1736674136133,0.28871277,692.73,691.64,1.29953991]
[1736674137034,0.28871277,692.73,691.56,1.82860146]
[1736674137230,0.28871277,692.73,691.55,1.82860146]
[1736674137634,0.28871277,692.73,691.49,1.82860146]
[1736674139735,0.28871277,692.73,691.35,4.31431834]
[1736674139934,0.28871277,692.73,691.36,1.82885495]
[1736674140836,0.28871277,692.73,691.36,3.12839486]
[1736674141236,0.28871277,692.73,691.37,3.01477843]
[1736674141431,0.28871277,692.73,691.38,1.82885495]
[1736674142235,0.28871277,692.73,691.37,1.82885495]
[1736674142638,0.28871277,692.73,691.37,3.12839486]
[1736674143134,0.28871277,692.73,691.38,3.01477843]
[1736674143338,0.28871277,692.73,691.39,1.82885495]
[1736674145144,0.28871277,692.73,691.39,4.84363338]
[1736674145338,0.28871277,692.73,691.4,1.82885495]
[1736674146343,0.28871277,692.73,691.4,2.71113583]
[1736674146743,0.28871277,692.73,691.41,3.01477843]
[1736674146943,0.28871277,692.73,691.42,2.71113583]
[1736674147845,0.28871277,692.73,691.61,1.29953991]
[1736674148647,0.28871277,692.73,691.59,1.29953991]
[1736674149142,0.28871277,692.73,691.61,1.29953991]
[1736674150848,0.28871277,692.73,691.63,1.29953991]
[1736674151644,0.28871277,692.73,691.62,1.29953991]
[1736674153251,0.28871277,692.73,691.61,0.88228088]
[1736674153652,0.28871277,692.73,691.61,3.89705931]
[1736674153852,0.28871277,692.73,691.62,2.71113583]
[1736674154254,1.08066157,692.72,691.62,2.71113583]
[1736674154747,1.08066157,692.72,691.61,3.01477843]
[1736674154956,1.08066157,692.72,691.49,1.29953991]
[1736674155154,0.28871277,692.73,691.34,1.29953991]
[1736674156554,1.08066157,692.72,690.96,1.29953991]
[1736674157152,0.28871277,692.73,690.94,1.29953991]
[1736674158957,0.28871277,692.73,690.93,1.29953991]
[1736674159956,0.28871277,692.73,690.87,1.82748778]
[1736674160657,0.28871277,692.73,690.74,3.01241987]
[1736674160658,0.28871277,692.73,690.75,2.7086428]
[1736674161954,0.28871277,692.73,690.76,3.01241987]
[1736674162152,0.28871277,692.73,690.77,2.7086428]
[1736674163356,0.28871277,692.73,690.78,3.01241987]
[1736674163656,0.28871277,692.73,690.79,2.7086428]
[1736674164659,0.28871277,692.73,690.79,4.00818271]
[1736674164859,0.28871277,692.73,690.8,0.88115502]
[1736674165061,0.28871277,692.73,690.8,3.89357489]
[1736674165358,0.28871277,692.73,690.81,2.7086428]
[1736674166861,0.28871277,692.73,690.82,3.01241987]
[1736674167056,0.28871277,692.73,690.83,2.7086428]
[1736674168361,0.28871277,692.73,690.84,3.01241987]
[1736674168560,0.28871277,692.73,690.85,2.7086428]
[1736674168859,0.28871277,692.73,690.88,1.29953991]
[1736674169661,0.28871277,692.73,691.06,1.29953991]
[1736674171863,0.28871277,692.73,691.05,1.29953991]
[1736674172962,0.28871277,692.73,691.2,1.29953991]
[1736674173861,0.28871277,692.73,691.26,1.29953991]
[1736674174460,0.28871277,692.73,691.24,1.29953991]
[1736674175364,0.28871277,692.73,691.26,1.29953991]
[1736674176265,0.28871277,692.73,691.27,1.29953991]
[1736674177268,0.28871277,692.73,691.23,2.18069493]
[1736674177862,0.28871277,692.73,691.23,3.89357489]
[1736674178066,0.28871277,692.73,691.24,2.7086428]
[1736674179472,0.28871277,692.73,691.25,3.01241987]
[1736674179669,0.28871277,692.73,691.26,2.7086428]
[1736674180870,0.28871277,692.73,691.27,3.01241987]
[1736674181072,0.28871277,692.73,691.28,2.7086428]
[1736674182667,0.28871277,692.73,691.29,3.01241987]
[1736674182871,0.28871277,692.73,691.3,2.7086428]
[1736674183972,1.08066157,692.72,691.3,2.7086428]
[1736674184174,0.2887211,692.71,691.31,3.01241987]
[1736674184367,0.2887211,692.71,691.32,2.7086428]
[1736674185075,0.2887211,692.71,691.32,1.82748778]
[1736674185471,0.2887211,692.71,691.32,4.83990765]
[1736674185667,0.2887211,692.71,691.33,1.82748778]
[1736674186072,0.2887211,692.71,691.35,1.29953991]
[1736674186977,0.2887211,692.71,691.34,3.01241987]
[1736674186978,0.2887211,692.71,691.36,1.29953991]
[1736674188078,0.2887211,692.71,691.41,1.29953991]
[1736674188974,0.2887211,692.71,691.36,3.01241987]
[1736674189678,0.2887211,692.71,691.32,1.29953991]
[1736674190679,0.2887211,692.71,691.33,1.29953991]
[1736674191279,1.36938267,692.71,691.32,1.29953991]
[1736674192273,1.08066157,692.63,691.26,3.01241987]
[1736674192577,1.08066157,692.63,691.27,1.82450743]
[1736674192777,1.08066157,692.63,691.25,3.01241987]
[1736674193776,1.08066157,692.62,691.25,3.01241987]
[1736674194477,1.08066157,692.59,691.16,1.29953991]
[1736674196279,1.08066157,692.57,691.1,1.29953991]
[1736674196979,1.08066157,692.54,691.16,1.29953991]
[1736674197986,1.08066157,692.55,691.15,1.29953991]
[1736674198378,0.28879198,692.54,691.15,1.29953991]
[1736674198986,0.28879198,692.54,691.11,3.88968345]
[1736674198987,0.28879198,692.54,691.17,1.29953991]
[1736674199687,0.28879198,692.54,691.27,1.29953991]
[1736674201986,0.28879198,692.54,691.26,1.29953991]
[1736674202887,0.28879198,692.54,691.23,3.01241987]
[1736674204293,0.28879198,692.54,690.97,1.29953991]
[1736674204692,0.28879198,692.54,690.92,1.29953991]
[1736674205093,0.28879198,692.54,690.93,0.28946492]
[1736674205886,0.28879198,692.54,690.94,1.29953991]
[1736674206592,0.28879198,692.54,690.95,0.28945654]
[1736674206788,0.28879198,692.54,690.97,1.29953991]
[1736674206992,0.28879198,692.54,690.98,0.28944397]
[1736674225804,0.2655568,692.53,691.15,1.29953991]
[1736674226601,0.28879198,692.54,691.15,1.29953991]
[1736674226902,0.28879198,692.54,691.23,1.29953991]
[1736674227409,0.28879198,692.54,691.22,1.29953991]
[1736674227706,0.26555038,692.53,691.22,1.29953991]
[1736674227907,0.28880032,692.52,691.22,1.29953991]
[1736674228107,0.28880032,692.52,691.23,1.29953991]
[1736674229103,0.28880032,692.52,691.09,1.29953991]
[1736674230102,0.28880032,692.52,691.0,1.82310778]
[1736674230103,1.36946189,692.52,691.0,1.82310778]
[1736674230406,1.36946189,692.52,691.0,2.69989899]
[1736674230601,1.36946189,692.52,691.0,2.69991487]
[1736674230806,1.36946189,692.52,691.0,1.82310778]
[1736674231009,1.08066157,692.51,691.0,1.82310778]
[1736674231408,0.28880866,692.5,690.99,1.82310778]
[1736674231807,0.28880866,692.5,691.0,0.2894356]
[1736674234110,1.36947023,692.5,691.0,3.29533666]
[1736674234310,1.36947023,692.5,691.01,1.82310778]
[1736674235111,1.08066157,692.48,691.01,1.82310778]
[1736674235312,0.28882117,692.47,691.01,1.82310778]
[1736674236713,0.28882117,692.47,691.01,2.69999088]
[1736674236911,0.28882117,692.47,691.01,5.70589194]
[1736674237111,0.28882117,692.47,691.02,2.69999088]
[1736674237413,0.28882117,692.47,691.23,1.29953991]
[1736674238008,1.36948274,692.47,691.24,1.29953991]
[1736674238913,1.36948274,692.47,691.27,1.29953991]
[1736674240107,0.28882117,692.47,690.98,1.29953991]
[1736674240807,0.28882117,692.47,690.93,1.29953991]
[1736674241815,0.28882117,692.47,690.95,1.29953991]
[1736674242516,0.28882117,692.47,690.94,1.29953991]
[1736674244119,0.28882117,692.47,690.82,3.00690926]
[1736674244515,0.28882117,692.47,690.79,1.29953991]
[1736674246717,0.28882117,692.47,690.77,1.29953991]
[1736674247418,0.28882117,692.47,690.78,1.29953991]
[1736674249822,0.28882117,692.47,690.44,1.29953991]
[1736674250522,0.28882117,692.47,690.43,1.29953991]
[1736674251323,0.28882117,692.47,690.42,1.29953991]
[1736674251623,0.28882117,692.47,690.42,4.3107847]
[1736674251819,0.28882117,692.47,690.43,1.82675996]
[1736674252022,0.28882117,692.47,690.44,1.29953991]
[1736674252623,0.28882117,692.47,690.44,2.1782939]
[1736674253016,0.28882117,692.47,690.49,1.29953991]
[1736674254123,0.28882117,692.47,690.48,1.29953991]
[1736674254923,0.28882117,692.47,690.46,0.87875399]
[1736674254924,0.28882117,692.47,690.47,1.29953991]
[1736674255225,0.28882117,692.47,690.47,4.00505386]
[1736674255423,0.28882117,692.47,690.48,0.87875399]
[1736674256522,0.28882117,692.47,690.48,3.88999878]
[1736674256717,0.28882117,692.47,690.49,2.70551395]
[1736674257117,0.28882117,692.47,690.9,1.29953991]
[1736674258022,0.28882117,692.47,691.06,1.29953991]
[1736674258818,0.28882117,692.47,691.05,1.29953991]
[1736674259019,0.28882117,692.47,691.06,0.28941047]
[1736674259827,0.28882117,692.47,691.16,1.29953991]
[1736674260726,0.28882117,692.47,691.06,0.28941047]
[1736674270833,0.28882117,692.47,691.09,1.29953991]
[1736674271734,0.28882117,692.47,691.08,1.29953991]
[1736674272234,0.28882117,692.47,691.09,0.2893979]
[1736674272929,0.28882117,692.47,691.1,1.29953991]
[1736674273335,0.28882117,692.47,691.11,0.28938953]
[1736674273930,0.28882117,692.47,691.11,1.58892944]
[1736674274735,0.28882117,692.47,691.22,1.29953991]
[1736674275435,0.28882117,692.47,691.3,1.29953991]
[1736674277532,0.28882117,692.47,691.34,1.29953991]
[1736674278338,0.28882117,692.47,691.32,1.29953991]
[1736674280436,0.28882117,692.47,691.3,0.8769028]
[1736674280437,0.28882117,692.47,691.33,1.29953991]
[1736674281438,0.28882117,692.47,691.38,1.29953991]
[1736674282533,0.28882117,692.47,691.33,2.70271297]
[1736674282737,0.28882117,692.47,691.33,1.82581017]
[1736674283941,0.28882117,692.47,691.29,3.01052589]
[1736674284234,0.28882117,692.47,691.28,1.29953991]
[1736674284441,0.28882117,692.47,690.66,1.29953991]
[1736674285335,0.28882117,692.47,690.6,1.29953991]
[1736674286641,0.28882117,692.47,690.91,1.29953991]
[1736674287339,0.28882117,692.47,691.07,1.29953991]
[1736674288243,0.28882117,692.47,691.06,1.29953991]
[1736674290144,0.28882117,692.47,691.19,1.29953991]
[1736674290837,0.28882117,692.47,691.09,1.82241243]
[1736674291045,0.28882117,692.47,691.1,3.00490779]
[1736674292446,0.28882117,692.47,691.03,1.29953991]
[1736674292845,0.28882117,692.47,690.92,2.70261471]
[1736674292846,0.28882117,692.47,691.02,1.29953991]
[1736674295547,0.28882117,692.47,691.01,1.29953991]
[1736674296645,0.28882117,692.47,690.97,3.88394189]
[1736674296646,0.28882117,692.47,691.05,1.29953991]
[1736674297447,0.28882117,692.47,690.99,2.17857401]
[1736674297846,0.28882117,692.47,690.99,5.1834818]
[1736674298042,0.28882117,692.47,691.0,2.70261471]
[1736674298249,0.28882117,692.47,691.0,4.00215462]
[1736674298444,0.28882117,692.47,691.01,0.8790341]
[1736674299353,0.28882117,692.47,691.01,3.88394189]
[1736674299549,0.28882117,692.47,691.02,1.82358061]
[1736674299849,0.28882117,692.47,691.02,2.70310934]
[1736674300451,0.28882117,692.47,691.03,3.00490779]
[1736674300746,0.28882117,692.47,691.04,2.70310934]
[1736674300950,0.28882117,692.47,691.14,1.29953991]
[1736674301847,0.28882117,692.47,691.09,1.29953991]
[1736674302752,0.28882117,692.47,691.08,2.17906864]
[1736674303146,0.28882117,692.47,691.08,5.18397643]
[1736674303344,0.28882117,692.47,691.09,2.70310934]
[1736674303549,0.28882117,692.47,691.09,4.00264925]
[1736674303747,0.28882117,692.47,691.1,0.87952873]
[1736674304453,0.28882117,692.47,691.1,3.88443652]
[1736674304648,0.28882117,692.47,691.11,1.16891826]
[1736674304846,0.28882117,692.47,691.11,2.99249887]
[1736674305852,0.28882117,692.47,691.12,3.00490779]
[1736674306052,0.28882117,692.47,691.13,2.70310934]
[1736674309960,0.28882117,692.47,691.13,4.00264925]
[1736674310161,0.28882117,692.47,691.14,0.87952873]
[1736674310354,0.28882117,692.47,691.14,3.88443652]
[1736674310558,0.28882117,692.47,691.15,2.70310934]
[1736674310759,0.28882117,692.47,691.15,4.00264925]
[1736674310959,0.28882117,692.47,691.16,0.87952873]
[1736674311860,0.28882117,692.47,691.32,1.29953991]
[1736674312661,0.28882117,692.47,691.33,1.29953991]
[1736674313362,0.28882117,692.47,691.34,1.29953991]
[1736674315360,0.28882117,692.47,691.17,1.29953991]
[1736674316260,0.28882117,692.47,691.07,2.70621316]
[1736674316261,0.28882117,692.47,691.16,1.29953991]
[1736674317060,0.28882117,692.47,691.19,1.29953991]
[1736674317760,0.28882117,692.47,691.2,1.29953991]
[1736674318565,0.28882117,692.47,691.19,1.29953991]
[1736674319571,0.28882117,692.47,691.22,1.29953991]
[1736674320462,0.28882117,692.47,691.13,1.82605307]
[1736674320662,0.28882117,692.47,691.14,0.28937697]
[1736674321968,0.28882117,692.47,691.14,3.30019193]
[1736674322166,0.28882117,692.47,691.15,2.70624737]
[1736674322370,0.28882117,692.47,691.15,1.82605307]
[1736674322569,0.28882117,692.47,691.15,2.70640444]
[1736674323164,0.28882117,692.47,691.15,2.99577722]
[1736674323363,0.28882117,692.47,691.15,6.00659218]
[1736674323565,0.28882117,692.47,691.16,2.70640444]
[1736674324672,0.28882117,692.47,691.16,5.7172194]
[1736674324871,0.28882117,692.47,691.17,2.70640444]
[1736674325075,0.28882117,692.47,691.31,1.29953991]
[1736674326172,0.28882117,692.47,691.24,2.70640444]
[1736674326173,0.28882117,692.47,691.32,1.29953991]
[1736674326972,0.28882117,692.47,691.4,1.29953991]
[1736674327770,0.28882117,692.47,691.39,1.29953991]
[1736674328878,0.28882117,692.47,691.41,1.29953991]
[1736674329777,0.28882117,692.47,691.42,1.29953991]
[1736674334083,0.28882117,692.47,691.42,4.31035487]
[1736674334483,0.28882117,692.47,691.42,3.01081496]
[1736674335382,0.28882117,692.47,691.43,1.82733337]
[1736674335678,1.08066157,692.44,691.41,1.82733337]
[1736674335883,1.08066157,692.44,691.33,1.82733337]
[1736674336678,1.08066157,692.45,691.33,1.82733337]
[1736674337081,1.08066157,692.45,691.29,2.70826115]
[1736674338285,1.08066157,692.45,691.29,5.71907611]
[1736674338579,1.08066157,692.45,691.3,1.82733337]
[1736674338784,1.08066157,692.45,691.3,2.708411]
[1736674339183,1.08066157,692.45,691.3,1.82733337]
[1736674339982,1.08066157,692.45,691.3,4.83814833]
[1736674340187,1.08066157,692.45,691.31,1.82733337]
[1736674342284,1.08066157,692.45,691.31,2.70860963]
[1736674343592,1.08066157,692.45,691.31,5.71942459]
[1736674343790,1.08066157,692.45,691.32,2.70860963]
[1736674344490,0.28882117,692.47,691.33,1.29953991]
[1736674344686,0.28882117,692.47,691.33,2.18081617]
[1736674344890,0.28882117,692.47,691.33,5.19163113]
[1736674345085,0.28882117,692.47,691.34,2.70860963]